[Event "Chestnut 2nd Category Final 2025"]
[Site "Kyiv"]
[Date "2025.04.06"]
[Round "8.5"]
[White "Prykhodko, Artem"]
[Black "Kulak, Volodymyr"]
[Result "1-0"]
[Annotator "NA"]
[ECO "A22"]
[WhiteElo "1678"]
[BlackElo "1607"]
[PlyCount "120"]
[EventDate "2025.04.03"]
[EventCountry "UKR"]
[SourceTitle "playchess.com"]
[Source "ChessBase"]
[SourceQuality "1"]
[TimeControl "600+5"]

1. c4 {[%emt 0:00:04]} e5 2. g3 {[%emt 0:00:00]} Nf6 {[%emt 0:00:07]} 3. Nc3 Bc5 {[%emt 0:00:02]} 4. Bg2 {[%emt 0:00:04]} Nc6 5. Nf3 {[%emt 0:00:09]} d6 {[%emt 0:00:15]} 6. d3 {[%emt 0:00:01]} Bf5 {[%emt 0:00:12]} 7. Bg5 {[%emt 0:00:02]} h6 {[%emt 0:00:05]} 8. Bxf6 {[%emt 0:00:03]} Qxf6 9. Nh4 {[%emt 0:00:07]} O-O {[%emt 0:00:41]} 10. Nxf5 {[%emt 0:00:03]} Qxf5 {[%emt 0:00:05]} 11. O-O {[%emt 0:00:04]} Rab8 {[%emt 0:00:29]} 12. Be4 {[%emt 0:00:14]} Qf6 {[%emt 0:00:09]} 13. Bg2 {[%emt 0:00:01]} Nd4 {[%emt 0:00:12]} 14. Ne4 {[%emt 0:00:05]} Qe7 {[%emt 0:00:19]} 15. e3 {[%emt 0:00:06]} Ne6 {[%emt 0:00:07]} 16. Nxc5 {[%emt 0:00:17]} Nxc5 {[%emt 0:00:04]} 17. d4 {[%emt 0:00:05]} exd4 {[%emt 0:00:08]} 18. exd4 {[%emt 0:00:01]} Nd7 {[%emt 0:00:03]} 19. Re1 {[%emt 0:00:02]} Qd8 {[%emt 0:00:04]} 20. c5 {[%emt 0:00:04]} dxc5 {[%emt 0:00:15]} 21. dxc5 {[%emt 0:00:03]} Nxc5 {[%emt 0:00:08]} 22. Qc2 {[%emt 0:00:12]} Ne6 {[%emt 0:00:14]} 23. Rad1 {[%emt 0:00:09]} Qf6 {[%emt 0:00:06]} 24. b3 {[%emt 0:00:41]} c6 {[%emt 0:00:08]} 25. Be4 {[%emt 0:00:29]} Rfd8 {[%emt 0:00:16]} 26. Qc4 {[%emt 0:00:26]} Rxd1 {[%emt 0:00:25]} 27. Rxd1 {[%emt 0:00:03]} Rd8 {[%emt 0:00:03]} 28. Bd3 {[%emt 0:00:26]} Rd4 {[%emt 0:01:02]} 29. Qc3 {[%emt 0:00:42]} Qd8 {[%emt 0:00:19]} 30. f4 {[%emt 0:00:17]} Rd7 {[%emt 0:00:42]} 31. Qd2 {[%emt 0:00:24]} Kh8 {[%emt 0:00:19]} 32. Qc3 {[%emt 0:00:18]} b6 {[%emt 0:00:32]} 33. b4 {[%emt 0:00:07]} c5 {[%emt 0:00:36]} 34. a3 {[%emt 0:00:07]} cxb4 {[%emt 0:00:40]} 35. axb4 {[%emt 0:02:09]} Qc7 {[%emt 0:00:35]} 36. Qxc7 {[%emt 0:00:10]} Rxc7 {[%emt 0:00:07]} 37. Bb1 {[%emt 0:00:10]} g6 {[%emt 0:00:15]} 38. f5 {[%emt 0:00:05]} gxf5 {[%emt 0:00:11]} 39. Bxf5 {[%emt 0:00:03]} Kg7 {[%emt 0:00:43]} 40. Kg2 {[%emt 0:00:45]} Kf6 {[%emt 0:00:09]} 41. g4 {[%emt 0:00:06]} a5 {[%emt 0:00:06]} 42. bxa5 {[%emt 0:00:09]} bxa5 {[%emt 0:00:03]} 43. Ra1 {[%emt 0:00:04]} Ra7 {[%emt 0:00:06]} 44. Rf1 {[%emt 0:00:09]} Ke7 {[%emt 0:00:08]} 45. Ra1 {[%emt 0:00:07]} a4 {[%emt 0:00:05]} 46. Ra3 {[%emt 0:00:03]} Nd4 {[%emt 0:00:18]} 47. Bd3 {[%emt 0:00:31]} Kd6 {[%emt 0:00:09]} 48. Kf2 {[%emt 0:00:23]} Kc5 {[%emt 0:00:05]} 49. Rc3+ {[%emt 0:00:05]} Kb6 {[%emt 0:00:33]} 50. Rc4 {[%emt 0:00:17]} Nc6 {[%emt 0:00:35]} 51. Be4 {[%emt 0:00:49]} Ne5 {[%emt 0:00:06]} 52. Rb4+ {[%emt 0:00:26]} Kc5 {[%emt 0:00:07]} 53. Rb1 {[%emt 0:00:18]} a3 {[%emt 0:00:04]} 54. Rc1+ {[%emt 0:00:08]} Kd4 {[%emt 0:00:14]} 55. Bb1 {[%emt 0:00:45]} Nd3+ {[%emt 0:00:08]} 56. Bxd3 {[%emt 0:00:11]} Kxd3 {[%emt 0:00:02]} 57. Rd1+ {[%emt 0:00:05]} Kc2 {[%emt 0:00:02]} 58. Ke2 {[%emt 0:00:01]} a2 {[%emt 0:00:03]} 59. Rd2+ {[%emt 0:00:02]} Kc3 {[%emt 0:00:01]} 60. Rd3+ {[%emt 0:00:02]} Kc4 {[%emt 0:00:01]} 1-0

[Event "Chestnut 2nd Category Final 2025"]
[Site "Kyiv"]
[Date "2025.04.06"]
[Round "9.1"]
[White "Atamanchuk, Dmytro"]
[Black "Kravchuk, Sviatoslav"]
[Result "1-0"]
[Annotator "NA"]
[ECO "D31"]
[WhiteElo "1493"]
[BlackElo "1441"]
[PlyCount "121"]
[EventDate "2025.04.03"]
[EventCountry "UKR"]
[SourceTitle "playchess.com"]
[Source "ChessBase"]
[SourceQuality "1"]
[TimeControl "600+5"]

1. d4 {[%emt 0:00:01]} d5 {[%emt 0:00:01]} 2. c4 {[%emt 0:00:01]} c6 {[%emt 0:00:01]} 3. Nc3 {[%emt 0:00:01]} e6 {[%emt 0:00:02]} 4. cxd5 {[%emt 0:00:02]} cxd5 {[%emt 0:00:06]} 5. Bf4 {[%emt 0:00:02]} Nc6 {[%emt 0:00:02]} 6. e3 {[%emt 0:00:01]} Nf6 {[%emt 0:00:01]} 7. Nf3 {[%emt 0:00:01]} b6 {[%emt 0:00:13]} 8. Bd3 {[%emt 0:00:20]} Bb7 {[%emt 0:00:02]} 9. O-O {[%emt 0:00:02]} Be7 {[%emt 0:00:03]} 10. Bb5 {[%emt 0:00:09]} O-O {[%emt 0:00:04]} 11. Rc1 {[%emt 0:00:03]} Rc8 {[%emt 0:00:14]} 12. Qa4 {[%emt 0:00:50]} Nh5 {[%emt 0:00:24]} 13. Ne2 {[%emt 0:00:11]} Nxf4 14. Nxf4 {[%emt 0:00:01]} Na5 {[%emt 0:00:26]} 15. Nd2 {[%emt 0:00:38]} Bd6 {[%emt 0:00:14]} 16. Ne2 {[%emt 0:00:29]} Qh4 {[%emt 0:00:17]} 17. h3 {[%emt 0:00:14]} Qh5 {[%emt 0:00:03]} 18. b4 {[%emt 0:00:59]} Nc4 {[%emt 0:00:03]} 19. Bxc4 {[%emt 0:00:24]} dxc4 {[%emt 0:00:04]} 20. Nxc4 {[%emt 0:00:03]} Qg5 {[%emt 0:00:58]} 21. f3 {[%emt 0:03:23]} Bb8 {[%emt 0:00:10]} 22. Qa3 {[%emt 0:00:26]} b5 {[%emt 0:00:22]} 23. Nd2 {[%emt 0:00:31]} Rxc1 {[%emt 0:00:15]} 24. Rxc1 {[%emt 0:00:06]} f5 {[%emt 0:00:43]} 25. Qb3 {[%emt 0:00:20]} Rf6 {[%emt 0:00:20]} 26. Rf1 {[%emt 0:00:46]} Rg6 {[%emt 0:00:08]} 27. Rf2 {[%emt 0:00:02]} Bxf3 {[%emt 0:00:50]} 28. Nxf3 {[%emt 0:00:03]} Qh5 {[%emt 0:00:17]} 29. Nf4 {[%emt 0:00:37]} Bxf4 {[%emt 0:00:06]} 30. exf4 {[%emt 0:00:02]} Qxh3 {[%emt 0:00:08]} 31. Nh2 {[%emt 0:00:58]} Qh4 {[%emt 0:00:23]} 32. Qc2 {[%emt 0:00:11]} Qd8 {[%emt 0:00:38]} 33. Qc5 {[%emt 0:00:06]} Qb8 {[%emt 0:00:13]} 34. Qe5 {[%emt 0:00:25]} Qc8 {[%emt 0:00:18]} 35. Qc5 {[%emt 0:00:03]} Qb8 {[%emt 0:00:06]} 36. a3 {[%emt 0:00:03]} Qb7 {[%emt 0:00:10]} 37. Rc2 {[%emt 0:00:06]} Rf6 {[%emt 0:00:21]} 38. Qc8+ {[%emt 0:00:04]} Qxc8 {[%emt 0:00:02]} 39. Rxc8+ {[%emt 0:00:01]} Rf8 {[%emt 0:00:01]} 40. Rc7 {[%emt 0:00:03]} Rf7 {[%emt 0:00:01]} 41. Rc8+ {[%emt 0:00:10]} Rf8 {[%emt 0:00:01]} 42. Rc6 {[%emt 0:00:08]} Re8 {[%emt 0:00:05]} 43. Nf3 {[%emt 0:00:03]} h6 {[%emt 0:00:02]} 44. Rc7 {[%emt 0:00:12]} Kf8 {[%emt 0:00:33]} 45. Rxa7 {[%emt 0:00:02]} Re7 {[%emt 0:00:02]} 46. Ra6 {[%emt 0:00:09]} Ke8 {[%emt 0:00:19]} 47. Ne5 {[%emt 0:00:03]} Rc7 {[%emt 0:00:13]} 48. Rb6 {[%emt 0:00:07]} Rc1+ {[%emt 0:00:07]} 49. Kh2 {[%emt 0:00:01]} Rc8 {[%emt 0:00:18]} 50. Rxe6+ Kf8 {[%emt 0:00:02]} 51. Rb6 {[%emt 0:00:05]} Ra8 {[%emt 0:00:06]} 52. Rxb5 Rxa3 {[%emt 0:00:03]} 53. Rb8+ {[%emt 0:00:05]} Ke7 {[%emt 0:00:03]} 54. Rb7+ {[%emt 0:00:02]} Ke8 {[%emt 0:00:04]} 55. Rxg7 {[%emt 0:00:04]} Rb3 {[%emt 0:00:04]} 56. Rb7 {[%emt 0:00:07]} Kd8 {[%emt 0:00:12]} 57. Rb6 {[%emt 0:00:04]} Kc7 {[%emt 0:00:03]} 58. Rxh6 {[%emt 0:00:07]} Rxb4 {[%emt 0:00:02]} 59. Rc6+ {[%emt 0:00:04]} Kb7 {[%emt 0:00:05]} 60. Rd6 {[%emt 0:00:02]} Kc7 {[%emt 0:00:05]} 61. Rd5 {[%emt 0:00:02]} 1-0

[Event "Chestnut 2nd Category Final 2025"]
[Site "Kyiv"]
[Date "2025.04.06"]
[Round "9.2"]
[White "Kulak, Volodymyr"]
[Black "Lymar, Makar"]
[Result "1-0"]
[Annotator "NA"]
[ECO "B13"]
[WhiteElo "1607"]
[BlackElo "1565"]
[PlyCount "153"]
[EventDate "2025.04.03"]
[EventCountry "UKR"]
[SourceTitle "playchess.com"]
[Source "ChessBase"]
[SourceQuality "1"]
[TimeControl "600+5"]

1. e4 {[%emt 0:00:03]} c6 {[%emt 0:00:00]} 2. d4 {[%emt 0:00:02]} d5 {[%emt 0:00:01]} 3. exd5 {[%emt 0:00:05]} cxd5 {[%emt 0:00:02]} 4. Nf3 {[%emt 0:00:03]} Nc6 {[%emt 0:00:04]} 5. Bd3 {[%emt 0:00:10]} Nf6 {[%emt 0:00:04]} 6. Bf4 {[%emt 0:00:14]} Bg4 {[%emt 0:00:04]} 7. c3 {[%emt 0:00:10]} Ne4 {[%emt 0:00:10]} 8. Nbd2 {[%emt 0:00:14]} Nxd2 {[%emt 0:00:05]} 9. Bxd2 {[%emt 0:00:10]} e6 {[%emt 0:00:02]} 10. Bf4 {[%emt 0:00:08]} Bd6 {[%emt 0:00:02]} 11. Bxd6 {[%emt 0:00:05]} Qxd6 {[%emt 0:00:02]} 12. h3 {[%emt 0:00:02]} Bh5 {[%emt 0:00:02]} 13. Be2 {[%emt 0:00:10]} O-O {[%emt 0:00:10]} 14. O-O {[%emt 0:00:03]} Bxf3 {[%emt 0:00:02]} 15. Bxf3 {[%emt 0:00:02]} Ne7 {[%emt 0:00:12]} 16. Qd2 {[%emt 0:00:37]} Ng6 {[%emt 0:00:16]} 17. Rfe1 {[%emt 0:00:11]} Rfe8 {[%emt 0:00:03]} 18. g3 {[%emt 0:01:18]} Rad8 {[%emt 0:00:53]} 19. Bg2 {[%emt 0:00:03]} e5 {[%emt 0:00:02]} 20. dxe5 {[%emt 0:00:08]} Nxe5 {[%emt 0:00:02]} 21. Rad1 {[%emt 0:00:23]} Nc4 {[%emt 0:00:41]} 22. Rxe8+ {[%emt 0:00:20]} Rxe8 {[%emt 0:00:01]} 23. Qxd5 {[%emt 0:00:17]} Qxd5 {[%emt 0:00:11]} 24. Rxd5 {[%emt 0:00:11]} Nxb2 {[%emt 0:00:06]} 25. Rd7 {[%emt 0:00:06]} g6 {[%emt 0:00:29]} 26. Rxb7 {[%emt 0:00:07]} Re1+ {[%emt 0:00:07]} 27. Kh2 {[%emt 0:00:03]} Nd3 {[%emt 0:00:03]} 28. Bd5 {[%emt 0:00:55]} Ne5 {[%emt 0:00:58]} 29. Kg2 {[%emt 0:00:11]} Rd1 {[%emt 0:00:12]} 30. Bb3 {[%emt 0:00:28]} Rb1 {[%emt 0:00:25]} 31. Rxa7 {[%emt 0:00:08]} Rb2 {[%emt 0:00:13]} 32. g4 {[%emt 0:01:42]} Kg7 {[%emt 0:00:20]} 33. Kg3 {[%emt 0:00:18]} Nd3 {[%emt 0:00:31]} 34. Rxf7+ {[%emt 0:00:12]} Kh8 {[%emt 0:00:39]} 35. Rf3 {[%emt 0:00:14]} Ne5 {[%emt 0:00:20]} 36. Re3 {[%emt 0:00:10]} Nc6 {[%emt 0:00:04]} 37. Bd5 {[%emt 0:00:28]} Na5 {[%emt 0:00:19]} 38. Re8+ {[%emt 0:01:30]} Kg7 {[%emt 0:00:04]} 39. Re7+ {[%emt 0:00:25]} Kh8 {[%emt 0:00:09]} 40. f4 {[%emt 0:00:15]} Rd2 {[%emt 0:00:19]} 41. c4 {[%emt 0:00:20]} Rxa2 {[%emt 0:00:09]} 42. c5 {[%emt 0:00:21]} Rd2 {[%emt 0:00:15]} 43. Bf3 {[%emt 0:00:08]} Rc2 {[%emt 0:00:13]} 44. Rc7 {[%emt 0:00:03]} Rc3 {[%emt 0:00:03]} 45. Rc8+ {[%emt 0:00:06]} Kg7 {[%emt 0:00:02]} 46. c6 {[%emt 0:00:03]} Nc4 {[%emt 0:00:41]} 47. Kf2 {[%emt 0:00:16]} Rc2+ {[%emt 0:00:13]} 48. Be2 {[%emt 0:00:09]} Na5 {[%emt 0:00:12]} 49. Rc7+ {[%emt 0:00:09]} Kf8 {[%emt 0:00:14]} 50. Rxh7 {[%emt 0:00:08]} Nxc6 {[%emt 0:00:05]} 51. Ke3 {[%emt 0:00:07]} Nb4 {[%emt 0:00:22]} 52. Rd7 {[%emt 0:00:04]} Rc3+ {[%emt 0:00:11]} 53. Bd3 {[%emt 0:00:03]} Ke8 {[%emt 0:00:10]} 54. Rd4 {[%emt 0:00:02]} Nc2+ {[%emt 0:00:01]} 55. Kd2 {[%emt 0:00:04]} Nxd4 {[%emt 0:00:09]} 56. Kxc3 {[%emt 0:00:03]} Ne6 {[%emt 0:00:04]} 57. f5 {[%emt 0:00:11]} gxf5 {[%emt 0:00:05]} 58. Bxf5 {[%emt 0:00:02]} Ng5 {[%emt 0:00:06]} 59. h4 {[%emt 0:00:02]} Nf7 {[%emt 0:00:02]} 60. Kd4 {[%emt 0:00:04]} Kf8 {[%emt 0:00:01]} 61. Ke4 {[%emt 0:00:02]} Kg7 {[%emt 0:00:01]} 62. Kf4 {[%emt 0:00:07]} Nd6 {[%emt 0:00:17]} 63. g5 {[%emt 0:00:08]} Nf7 {[%emt 0:00:03]} 64. Be6 {[%emt 0:00:07]} Nd6 {[%emt 0:00:12]} 65. Ke5 {[%emt 0:00:10]} Ne8 {[%emt 0:00:02]} 66. h5 {[%emt 0:00:02]} Kh8 {[%emt 0:00:10]} 67. h6 {[%emt 0:00:08]} Nc7 {[%emt 0:00:12]} 68. g6 {[%emt 0:00:05]} Ne8 {[%emt 0:00:50]} 69. Kf5 {[%emt 0:00:07]} Nd6+ {[%emt 0:00:16]} 70. Kg5 {[%emt 0:00:05]} Ne4+ {[%emt 0:00:07]} 71. Kf4 {[%emt 0:00:03]} Nf6 {[%emt 0:00:14]} 72. Kf5 {[%emt 0:00:04]} Nh5 {[%emt 0:00:13]} 73. Kg5 {[%emt 0:00:05]} Nf6 {[%emt 0:00:02]} 74. g7+ {[%emt 0:00:06]} Kh7 {[%emt 0:00:05]} 75. Kxf6 {[%emt 0:00:03]} Kxh6 {[%emt 0:00:02]} 76. g8=Q {[%emt 0:00:03]} Kh5 {[%emt 0:00:01]} 77. Qg5# {[%emt 0:00:01]} 1-0

[Event "Chestnut 2nd Category Final 2025"]
[Site "Kyiv"]
[Date "2025.04.06"]
[Round "9.3"]
[White "Voloshyn, Maksym"]
[Black "Prykhodko, Artem"]
[Result "1-0"]
[Annotator "NA"]
[ECO "D37"]
[WhiteElo "1621"]
[BlackElo "1678"]
[PlyCount "101"]
[EventDate "2025.04.03"]
[EventCountry "UKR"]
[SourceTitle "playchess.com"]
[Source "ChessBase"]
[SourceQuality "1"]
[TimeControl "600+5"]

1. d4 Nf6 2. Nf3 e6 3. c4 d5 4. Nc3 {[%emt 0:00:09]} Be7 {[%emt 0:00:13]} 5. e3 {[%emt 0:00:05]} O-O {[%emt 0:00:05]} 6. cxd5 {[%emt 0:00:05]} Nxd5 {[%emt 0:00:05]} 7. Bd3 {[%emt 0:00:05]} Nc6 {[%emt 0:00:05]} 8. Nxd5 {[%emt 0:00:05]} Qxd5 {[%emt 0:00:05]} 9. O-O {[%emt 0:00:05]} b6 {[%emt 0:00:05]} 10. Qc2 {[%emt 0:00:05]} h6 {[%emt 0:00:05]} 11. Be4 {[%emt 0:00:00]} Nb4 {[%emt 0:00:07]} 12. Qb1 {[%emt 0:00:09]} Qd7 {[%emt 0:00:38]} 13. Bxa8 {[%emt 0:00:03]} c6 {[%emt 0:00:01]} 14. a3 {[%emt 0:00:01]} Nd5 {[%emt 0:00:05]} 15. Qc2 {[%emt 0:00:05]} Ba6 {[%emt 0:00:34]} 16. Bxc6 {[%emt 0:00:05]} Qc7 {[%emt 0:00:08]} 17. Ba4 {[%emt 0:00:18]} Bxf1 {[%emt 0:00:28]} 18. Qxc7 {[%emt 0:00:06]} Nxc7 {[%emt 0:00:02]} 19. Kxf1 {[%emt 0:00:02]} b5 {[%emt 0:00:12]} 20. Bb3 {[%emt 0:00:01]} a5 {[%emt 0:00:02]} 21. Bd2 {[%emt 0:00:02]} a4 {[%emt 0:00:02]} 22. Ba2 {[%emt 0:00:02]} Rd8 {[%emt 0:00:30]} 23. Rc1 {[%emt 0:00:08]} Ne8 {[%emt 0:00:32]} 24. Ne5 {[%emt 0:00:02]} Bf6 {[%emt 0:00:22]} 25. Nc6 {[%emt 0:00:05]} Rd7 {[%emt 0:00:31]} 26. Bb4 {[%emt 0:00:03]} Rc7 {[%emt 0:00:30]} 27. Ne7+ {[%emt 0:00:23]} Rxe7 {[%emt 0:00:08]} 28. Bxe7 {[%emt 0:00:02]} Bxe7 {[%emt 0:00:03]} 29. Rc8 {[%emt 0:00:03]} Kf8 {[%emt 0:00:08]} 30. Bb1 {[%emt 0:00:02]} b4 {[%emt 0:00:11]} 31. axb4 {[%emt 0:00:03]} Bxb4 {[%emt 0:00:07]} 32. Bc2 {[%emt 0:00:04]} a3 {[%emt 0:00:11]} 33. bxa3 {[%emt 0:00:02]} Bxa3 {[%emt 0:00:24]} 34. Ba4 {[%emt 0:00:02]} Ke7 {[%emt 0:00:01]} 35. Rxe8+ {[%emt 0:00:03]} Kf6 {[%emt 0:00:02]} 36. Rb8 {[%emt 0:00:06]} Bd6 {[%emt 0:00:03]} 37. Rb6 {[%emt 0:00:01]} Bc7 {[%emt 0:00:03]} 38. Rc6 {[%emt 0:00:01]} Bb8 {[%emt 0:00:07]} 39. d5 {[%emt 0:00:02]} Ke5 {[%emt 0:00:12]} 40. dxe6 {[%emt 0:00:02]} fxe6 {[%emt 0:00:03]} 41. Bb3 {[%emt 0:00:01]} Ba7 {[%emt 0:00:10]} 42. Rxe6+ {[%emt 0:00:03]} Kf5 {[%emt 0:00:03]} 43. Re7 {[%emt 0:00:02]} Kg4 {[%emt 0:00:28]} 44. Rxg7+ {[%emt 0:00:03]} Kh4 {[%emt 0:00:02]} 45. Bd1 {[%emt 0:00:13]} Bxe3 {[%emt 0:00:14]} 46. Rg4+ {[%emt 0:00:08]} Kh5 {[%emt 0:00:02]} 47. Re4+ {[%emt 0:00:02]} Kg5 {[%emt 0:00:03]} 48. Rxe3 {[%emt 0:00:01]} h5 {[%emt 0:00:03]} 49. Bxh5 {[%emt 0:00:04]} Kh4 {[%emt 0:00:03]} 50. Rg3 {[%emt 0:00:05]} Kxh5 {[%emt 0:00:02]} 51. Ke2 {[%emt 0:00:02]} 1-0

[Event "Chestnut 2nd Category Final 2025"]
[Site "Kyiv"]
[Date "2025.04.06"]
[Round "9.4"]
[White "Ruzhanskyi, Kiril"]
[Black "Chornyi, Viktor"]
[Result "1-0"]
[Annotator "NA"]
[ECO "D00"]
[WhiteElo "1534"]
[BlackElo "1515"]
[PlyCount "97"]
[EventDate "2025.04.03"]
[EventCountry "UKR"]
[SourceTitle "playchess.com"]
[Source "ChessBase"]
[SourceQuality "1"]
[TimeControl "600+5"]

1. d4 d5 2. g3 e6 {[%emt 0:00:06]} 3. Bg2 {[%emt 0:00:07]} c5 {[%emt 0:00:05]} 4. c3 {[%emt 0:00:05]} Nc6 {[%emt 0:00:05]} 5. Nf3 {[%emt 0:00:00]} Qb6 {[%emt 0:00:00]} 6. dxc5 {[%emt 0:00:03]} Bxc5 {[%emt 0:00:02]} 7. O-O {[%emt 0:00:05]} Nf6 {[%emt 0:00:05]} 8. b4 {[%emt 0:00:05]} Bd6 {[%emt 0:00:05]} 9. Bg5 {[%emt 0:00:05]} Ne4 {[%emt 0:00:05]} 10. Be3 {[%emt 0:00:05]} Qc7 {[%emt 0:00:05]} 11. Qd3 {[%emt 0:00:05]} Be5 {[%emt 0:00:05]} 12. Nxe5 {[%emt 0:00:05]} Nxe5 {[%emt 0:00:05]} 13. Qc2 {[%emt 0:01:02]} Nd6 {[%emt 0:00:35]} 14. Bf4 {[%emt 0:00:05]} Nec4 {[%emt 0:00:05]} 15. Nd2 {[%emt 0:00:11]} b5 {[%emt 0:00:24]} 16. Nxc4 {[%emt 0:00:08]} bxc4 {[%emt 0:00:03]} 17. e4 {[%emt 0:00:10]} Bb7 {[%emt 0:00:19]} 18. exd5 {[%emt 0:00:09]} Bxd5 {[%emt 0:00:10]} 19. Bxd5 {[%emt 0:00:03]} exd5 {[%emt 0:00:03]} 20. Rfe1+ {[%emt 0:00:01]} Kd7 {[%emt 0:00:02]} 21. Qa4+ {[%emt 0:00:06]} Qc6 {[%emt 0:00:05]} 22. Re7+ {[%emt 0:00:05]} Kxe7 {[%emt 0:00:05]} 23. Qxc6 {[%emt 0:00:05]} Rhd8 {[%emt 0:00:05]} 24. Re1+ {[%emt 0:00:05]} Kf8 {[%emt 0:00:05]} 25. Bxd6+ {[%emt 0:00:05]} Kg8 {[%emt 0:00:05]} 26. Qxd5 {[%emt 0:00:05]} h6 {[%emt 0:00:05]} 27. Re7 {[%emt 0:00:02]} Rf8 {[%emt 0:01:15]} 28. Rxa7 {[%emt 0:00:05]} Rxa7 {[%emt 0:00:05]} 29. Bxf8 {[%emt 0:00:05]} Rxa2 {[%emt 0:00:05]} 30. Bxg7 {[%emt 0:00:05]} Kxg7 {[%emt 0:00:05]} 31. Qxc4 {[%emt 0:00:05]} Kg8 {[%emt 0:00:46]} 32. Qd5 Kg7 33. Qc4 {[%emt 0:00:00]} Ra1+ {[%emt 0:00:09]} 34. Kg2 {[%emt 0:00:00]} Kf6 {[%emt 0:00:03]} 35. b5 {[%emt 0:00:00]} Ke7 {[%emt 0:00:02]} 36. b6 {[%emt 0:00:00]} Rb1 {[%emt 0:00:02]} 37. Qc7+ {[%emt 0:00:00]} Ke8 {[%emt 0:00:02]} 38. b7 {[%emt 0:00:00]} Kf8 {[%emt 0:00:05]} 39. b8=Q+ {[%emt 0:00:03]} Rxb8 {[%emt 0:00:03]} 40. Qxb8+ {[%emt 0:00:05]} Kg7 {[%emt 0:00:01]} 41. c4 {[%emt 0:00:00]} h5 {[%emt 0:00:02]} 42. c5 {[%emt 0:00:01]} h4 {[%emt 0:00:01]} 43. c6 {[%emt 0:00:01]} h3+ {[%emt 0:00:04]} 44. Kxh3 {[%emt 0:00:03]} f5 {[%emt 0:00:01]} 45. c7 {[%emt 0:00:01]} f4 {[%emt 0:00:02]} 46. c8=Q f3 {[%emt 0:00:01]} 47. Qg4+ {[%emt 0:00:07]} Kh7 {[%emt 0:00:04]} 48. Qc7+ {[%emt 0:00:04]} Kh6 {[%emt 0:00:03]} 49. Qcg7# {[%emt 0:00:02]} 1-0

[Event "Chestnut 2nd Category Final 2025"]
[Site "Kyiv"]
[Date "2025.04.06"]
[Round "9.5"]
[White "Fabrykator, Myroslava"]
[Black "Diachuk, Ihor"]
[Result "0-1"]
[Annotator "NA"]
[ECO "C70"]
[WhiteElo "1457"]
[BlackElo "1550"]
[PlyCount "78"]
[EventDate "2025.04.03"]
[EventCountry "UKR"]
[SourceTitle "playchess.com"]
[Source "ChessBase"]
[SourceQuality "1"]
[TimeControl "600+5"]

1. e4 {[%emt 0:00:01]} e5 {[%emt 0:00:01]} 2. Nf3 {[%emt 0:00:01]} Nc6 {[%emt 0:00:01]} 3. Bb5 {[%emt 0:00:02]} a6 {[%emt 0:00:02]} 4. Ba4 {[%emt 0:00:01]} b5 {[%emt 0:00:03]} 5. Bb3 {[%emt 0:00:01]} h6 {[%emt 0:00:04]} 6. O-O {[%emt 0:00:05]} Be7 {[%emt 0:00:04]} 7. d3 {[%emt 0:00:17]} Nf6 {[%emt 0:00:02]} 8. Nc3 {[%emt 0:00:10]} Bb7 {[%emt 0:00:03]} 9. Be3 {[%emt 0:00:14]} O-O {[%emt 0:00:04]} 10. a4 {[%emt 0:00:11]} b4 {[%emt 0:00:18]} 11. Ne2 {[%emt 0:00:14]} Rb8 {[%emt 0:00:08]} 12. Ng3 {[%emt 0:00:04]} a5 {[%emt 0:00:03]} 13. Nf5 {[%emt 0:00:22]} d6 {[%emt 0:00:11]} 14. Nxe7+ {[%emt 0:00:18]} Qxe7 {[%emt 0:00:03]} 15. Nh4 {[%emt 0:00:40]} Bc8 {[%emt 0:00:25]} 16. h3 {[%emt 0:00:33]} Nxe4 {[%emt 0:00:27]} 17. Ng6 {[%emt 0:01:29]} Qf6 {[%emt 0:00:35]} 18. Nxf8 {[%emt 0:00:32]} Ng5 {[%emt 0:00:19]} 19. Bxg5 {[%emt 0:00:22]} hxg5 {[%emt 0:00:02]} 20. Qd2 {[%emt 0:01:41]} Kxf8 {[%emt 0:00:03]} 21. Qe3 {[%emt 0:00:35]} Ke7 {[%emt 0:00:06]} 22. Rad1 {[%emt 0:00:21]} g4 {[%emt 0:00:02]} 23. h4 {[%emt 0:00:12]} Qxh4 {[%emt 0:00:08]} 24. d4 {[%emt 0:00:26]} Be6 {[%emt 0:00:22]} 25. Qg3 {[%emt 0:00:39]} Qxg3 {[%emt 0:00:03]} 26. fxg3 {[%emt 0:00:02]} Bxb3 {[%emt 0:00:09]} 27. cxb3 {[%emt 0:00:14]} Nxd4 {[%emt 0:00:03]} 28. Rfe1 {[%emt 0:00:05]} Nxb3 {[%emt 0:00:10]} 29. Rd3 {[%emt 0:00:30]} Nc5 {[%emt 0:00:03]} 30. Rd5 {[%emt 0:00:11]} Ke6 {[%emt 0:00:11]} 31. Rd2 {[%emt 0:00:08]} f5 {[%emt 0:00:02]} 32. Rc2 {[%emt 0:00:21]} b3 {[%emt 0:00:52]} 33. Rc4 {[%emt 0:00:14]} Kd5 {[%emt 0:00:31]} 34. Rc3 {[%emt 0:00:17]} Rb4 {[%emt 0:00:15]} 35. Ra1 {[%emt 0:00:12]} Kc6 {[%emt 0:00:06]} 36. Kf2 {[%emt 0:00:06]} Kb6 {[%emt 0:00:02]} 37. Ke2 {[%emt 0:00:24]} Nxa4 {[%emt 0:00:08]} 38. Rac1 {[%emt 0:00:29]} Nxc3+ {[%emt 0:00:02]} 39. Rxc3 {[%emt 0:00:01]} a4 {[%emt 0:00:05]} 0-1